fUST/lending_fUST_20250605
["ID","MTS","AMOUNT","RATE_DAILY","PERIOD"]
[364309436,1749065447077,-637.54,0.00021202,2]
[364309438,1749065447087,-754.44,0.00021202,2]
[364309440,1749065447100,-607.05,0.00021202,2]
[364309442,1749065447116,-1037.68,0.00021202,2]
[364309444,1749065447126,-440.0,0.00021202,2]
[364309446,1749065447136,-440.0,0.00021202,2]
[364309448,1749065447145,-440.0,0.00021202,2]
[364309450,1749065447155,-440.0,0.00021202,2]
[364309452,1749065447166,-617.25,0.00021202,2]
[364309454,1749065447176,-9060.55917157,0.00021279,5]
[364309456,1749065447186,-163.83769251,0.00021423,2]
[364309458,1749065447196,-498.26,0.00021433,2]
[364309460,1749065447206,-440.0,0.00021433,2]
[364309462,1749065447215,-703.56,0.00021433,2]
[364309464,1749065447226,-611.11,0.00021434,2]
[364309466,1749065447235,-440.0,0.00021434,2]
[364309468,1749065447246,-1028.96,0.00021434,2]
[364309471,1749065447257,-409.29145975,0.00021434,2]
[364309473,1749065447267,-420.0,0.00021445,2]
[364309475,1749065447277,-444.98331165,0.00021445,2]
[364309477,1749065447287,-9060.55917157,0.00021452,5]
[364309479,1749065447296,-440.0,0.00021458,2]
[364309481,1749065447305,-440.0,0.00021458,2]
[364309483,1749065447315,-440.0,0.00021459,2]
[364309485,1749065447325,-894.72,0.00021466,3]
[364309487,1749065447335,-596.48,0.00021466,3]
[364309489,1749065447344,-440.0,0.00021476,2]
[364309491,1749065447354,-637.54,0.00021476,2]
[364309493,1749065447363,-754.44,0.00021476,2]
[364309495,1749065447373,-607.05,0.00021476,2]
[364309497,1749065447383,-1037.68,0.00021476,2]
[364309499,1749065447392,-440.0,0.00021476,2]
[364309501,1749065447402,-440.0,0.00021476,2]
[364309503,1749065447413,-440.0,0.00021476,2]
[364309505,1749065447422,-440.0,0.00021476,2]
[364309507,1749065447432,-617.25,0.00021476,2]
[364309509,1749065447442,-151.0,0.00021501,2]
[364309511,1749065447452,-151.0,0.00021501,2]
[364309513,1749065447462,-151.0,0.00021501,2]
[364309515,1749065447472,-151.0,0.00021501,2]
[364309517,1749065447481,-151.5395447,0.00021501,2]
[364309519,1749065447492,-151.24666928,0.00021501,2]
[364309521,1749065447502,-204.94527429,0.00021528,2]
[364309523,1749065447511,-198.0,0.00021528,2]
[364309525,1749065447521,-199.73141167,0.00021528,2]
[364309527,1749065447530,-151.0,0.00021528,2]
[364309529,1749065447539,-199.33053675,0.00021556,2]
[364309531,1749065447548,-9060.55917157,0.00021624,5]
[364309533,1749065447558,-498.26,0.00021707,2]
[364309536,1749065447568,-440.0,0.00021707,2]
[364309547,1749065447579,-703.56,0.00021707,2]
[364309549,1749065447690,-611.11,0.00021708,2]
[364309551,1749065447700,-440.0,0.00021708,2]
[364309553,1749065447710,-1028.96,0.00021708,2]
[364309555,1749065447718,-440.0,0.00021732,2]
[364309557,1749065447727,-440.0,0.00021733,2]
[364309559,1749065447736,-440.0,0.0002175,2]
[364309561,1749065447745,-637.54,0.0002175,2]
[364309563,1749065447754,-754.44,0.0002175,2]
[364309565,1749065447764,-607.05,0.0002175,2]
[364309567,1749065447773,-1037.68,0.0002175,2]
[364309569,1749065447782,-440.0,0.0002175,2]
[364309571,1749065447791,-440.0,0.0002175,2]
[364309573,1749065447801,-440.0,0.0002175,2]
[364309575,1749065447810,-440.0,0.0002175,2]
[364309577,1749065447820,-617.25,0.0002175,2]
[364309579,1749065447830,-9060.55917157,0.00021797,6]
[364309581,1749065447839,-500.0,0.00021917,2]
[364309583,1749065447848,-194.74946039,0.00021917,2]
[364309585,1749065447857,-9060.55917157,0.00021969,6]
[364309587,1749065447866,-151.0,0.00021969,7]
[364309589,1749065447875,-498.26,0.00021981,2]
[364309591,1749065447884,-440.0,0.00021981,2]
[364309593,1749065447893,-703.56,0.00021981,2]
[364309595,1749065447903,-611.11,0.00021982,2]
[364309597,1749065447914,-440.0,0.00021982,2]
[364309599,1749065447923,-1028.96,0.00021982,2]
[364309601,1749065447933,-83344.09,0.00022,7]
[364309603,1749065447943,-151.0,0.00022,7]
[364309605,1749065447952,-350.4615544,0.00022,2]
[364309607,1749065447961,-49092.36015231,0.00022,2]
[364309609,1749065447970,-203.512286,0.00022,7]
[364309611,1749065447980,-236.9729,0.00022,7]
[364309613,1749065447989,-151.0,0.00022,7]
[364309615,1749065447998,-151.0,0.00022,7]
[364309617,1749065448007,-440.0,0.00022006,2]
[364309619,1749065448016,-440.0,0.00022007,2]
[364309621,1749065448025,-440.0,0.00022024,2]
[364309623,1749065448035,-637.54,0.00022024,2]
[364309625,1749065448044,-754.44,0.00022024,2]
[364309627,1749065448053,-607.05,0.00022024,2]
[364309629,1749065448062,-1037.68,0.00022024,2]
[364309631,1749065448072,-440.0,0.00022024,2]
[364309633,1749065448081,-440.0,0.00022024,2]
[364309635,1749065448091,-440.0,0.00022024,2]
[364309637,1749065448100,-440.0,0.00022024,2]
[364309639,1749065448109,-617.25,0.00022024,2]
[364309641,1749065448118,-190.1102266,0.00022033,2]
[364309643,1749065448128,-607.68882086,0.00022062,2]
[364309645,1749065448137,-500.0,0.00022062,2]
[364309647,1749065448146,-500.0,0.00022062,2]
[364309649,1749065448157,-500.0,0.00022062,2]
[364309651,1749065448166,-500.0,0.00022062,2]
[364309653,1749065448176,-500.0,0.00022062,2]
[364309655,1749065448185,-207.4,0.00022062,2]
[364309657,1749065448194,-500.0,0.00022062,2]
[364309659,1749065448204,-5000.0,0.00022062,2]
[364309661,1749065448213,-500.0,0.00022062,2]
[364309663,1749065448225,-500.0,0.00022062,2]
[364309665,1749065448235,-500.0,0.00022062,2]
[364309667,1749065448244,-500.0,0.00022062,2]
[364309669,1749065448253,-500.0,0.00022062,2]
[364309671,1749065448262,-500.0,0.00022062,2]
[364309673,1749065448271,-500.0,0.00022062,2]
[364309675,1749065448280,-500.0,0.00022062,2]
[364309677,1749065448289,-500.0,0.00022062,2]
[364309679,1749065448298,-163.83769251,0.00022085,2]
[364309681,1749065448308,-650.77,0.000221,7]
[364309683,1749065448317,-9060.55917157,0.00022141,6]
[364309685,1749065448326,-498.26,0.00022255,2]
[364309687,1749065448336,-440.0,0.00022255,2]
[364309689,1749065448345,-703.56,0.00022255,2]
[364309691,1749065448355,-611.11,0.00022256,2]
[364309693,1749065448364,-440.0,0.00022256,2]
[364309695,1749065448374,-1028.96,0.00022256,2]
[364309697,1749065448383,-900.0,0.0002226,2]
[364309699,1749065448393,-151.0,0.00022267,7]
[364309701,1749065448402,-151.0,0.00022267,7]
[364309703,1749065448412,-151.0,0.00022267,7]
[364309705,1749065448421,-151.0,0.00022267,7]
[364309707,1749065448430,-151.0,0.00022267,7]
[364309709,1749065448440,-440.0,0.0002228,2]
[364309711,1749065448450,-440.0,0.00022281,2]
[364309713,1749065448459,-440.0,0.00022298,2]
[364309715,1749065448468,-637.54,0.00022298,2]
[364309716,1749065448477,-754.44,0.00022298,2]
[364309718,1749065448487,-607.05,0.00022298,2]
[364309720,1749065448496,-1037.68,0.00022298,2]
[364309722,1749065448506,-440.0,0.00022298,2]
[364309724,1749065448516,-440.0,0.00022298,2]
[364309726,1749065448525,-440.0,0.00022298,2]
[364309728,1749065448535,-440.0,0.00022298,2]
[364309731,1749065448545,-617.25,0.00022298,2]
[364309733,1749065448555,-9060.55917157,0.00022314,7]
[364309734,1749065448564,-151.0,0.00022314,7]
[364309736,1749065448574,-151.0,0.00022314,7]
[364309738,1749065448583,-500.0,0.00022465,2]
[364309740,1749065448593,-9060.55917157,0.00022486,7]
[364309742,1749065448602,-166.916959,0.00022505,2]
[364309744,1749065448612,-498.26,0.00022529,2]
[364309746,1749065448622,-440.0,0.00022529,2]
[364309748,1749065448632,-703.56,0.00022529,2]
[364309750,1749065448642,-611.11,0.0002253,2]
[364309752,1749065448651,-440.0,0.0002253,2]
[364309754,1749065448661,-1028.96,0.0002253,2]
[364309756,1749065448671,-12500.0,0.00022552,3]
[364309758,1749065448681,-440.0,0.00022554,2]
[364309760,1749065448691,-440.0,0.00022555,2]
[364309763,1749065448702,-151.0,0.00022561,7]
[364309765,1749065448711,-151.0,0.00022561,7]
[364309767,1749065448721,-287.865124,0.00022561,2]
[364309769,1749065448730,-287.865124,0.00022561,2]
[364309771,1749065448739,-12500.0,0.00022561,3]
[364309773,1749065448749,-500.0,0.00022569,2]
[364309775,1749065448759,-500.0,0.00022569,2]
[364309777,1749065448769,-500.0,0.00022569,2]
[364309779,1749065448778,-891.1495006,0.00022569,2]
[364309780,1749065448788,-891.1495006,0.00022569,2]
[364309782,1749065448797,-891.1495006,0.00022569,2]
[364309784,1749065448807,-381.78864802,0.00022569,2]
[364309787,1749065448816,-891.1495006,0.00022569,2]
[364309788,1749065448826,-891.1495006,0.00022569,2]
[364309790,1749065448835,-891.1495006,0.00022569,2]
[364309793,1749065448845,-500.0,0.00022569,2]
[364309795,1749065448854,-891.1495006,0.00022569,2]
[364309796,1749065448864,-500.0,0.00022569,2]
[364309799,1749065448874,-891.1495006,0.00022569,2]
[364309801,1749065448883,-891.1495006,0.00022569,2]
[364309803,1749065448893,-500.0,0.00022569,2]
[364309805,1749065448906,-891.1495006,0.00022569,2]
[364309807,1749065448916,-891.1495006,0.00022569,2]
[364309809,1749065448926,-891.1495006,0.00022569,2]
[364309811,1749065448935,-891.1495006,0.00022569,2]
[364309813,1749065448946,-891.1495006,0.00022569,2]
[364309814,1749065448955,-891.1495006,0.00022569,2]
[364309816,1749065448964,-500.0,0.00022569,2]
[364309819,1749065448974,-891.1495006,0.00022569,2]
[364309820,1749065448985,-891.1495006,0.00022569,2]
[364309823,1749065448995,-891.1495006,0.00022569,2]
[364309824,1749065449005,-891.1495006,0.00022569,2]
[364309827,1749065449015,-12500.0,0.0002257,3]
[364309829,1749065449024,-440.0,0.00022572,2]
[364309831,1749065449034,-637.54,0.00022572,2]
[364309833,1749065449043,-754.44,0.00022572,2]
[364309835,1749065449052,-607.05,0.00022572,2]
[364309837,1749065449062,-1037.68,0.00022572,2]
[364309839,1749065449071,-440.0,0.00022572,2]
[364309841,1749065449080,-440.0,0.00022572,2]
[364309843,1749065449089,-440.0,0.00022572,2]
[364309845,1749065449100,-440.0,0.00022572,2]
[364309847,1749065449109,-617.25,0.00022572,2]
[364309849,1749065449118,-253.73,0.000226,7]
[364309851,1749065449127,-5000.0,0.0002261,2]
[364309853,1749065449136,-9060.55917157,0.00022659,7]
[364309854,1749065449146,-151.0,0.0002273,7]
[364309857,1749065449156,-151.0,0.0002273,7]
[364309858,1749065449166,-12500.0,0.0002273,3]
[364309860,1749065449174,-12500.0,0.00022739,3]
[364309862,1749065449183,-12500.0,0.00022739,3]
[364309864,1749065449192,-163.83769251,0.00022746,2]
[364309866,1749065449201,-498.26,0.00022803,2]
[364309868,1749065449211,-440.0,0.00022803,2]
[364309870,1749065449220,-703.56,0.00022803,2]
[364309872,1749065449230,-611.11,0.00022804,2]
[364309875,1749065449240,-537.9404837,0.00022804,2]
[364309876,1749065449251,-1028.96,0.00022804,2]
[364309879,1749065449261,-440.0,0.00022828,2]
[364309880,1749065449270,-440.0,0.00022829,2]
[364309882,1749065449280,-9060.55917157,0.00022831,8]
[364309884,1749065449289,-151.0,0.00022846,7]
[364309886,1749065449298,-151.0,0.00022846,7]
[364309889,1749065449308,-151.0,0.00022846,7]
[364309891,1749065449317,-151.0,0.00022846,7]
[364309892,1749065449327,-151.0,0.00022846,7]
[364309895,1749065449337,-440.0,0.00022846,2]
[364309897,1749065449346,-637.54,0.00022846,2]
[364309898,1749065449355,-754.44,0.00022846,2]
[364309900,1749065449365,-607.05,0.00022846,2]
[364309902,1749065449374,-1037.68,0.00022846,2]
[364309904,1749065449384,-522.32538955,0.00022846,2]
[364309906,1749065449394,-440.0,0.00022846,2]
[364309909,1749065449404,-440.0,0.00022846,2]
[364309911,1749065449415,-440.0,0.00022846,2]
[364309912,1749065449424,-617.25,0.00022846,2]
[364309914,1749065449434,-151.0,0.00022847,7]
[364309916,1749065449444,-176.312334,0.00022847,7]
[364309919,1749065449454,-151.000001,0.00022847,7]
[364309920,1749065449464,-151.0,0.00022847,7]
[364309922,1749065449474,-500.0,0.00022973,2]
[364309924,1749065449484,-500.0,0.00022973,2]
[364309926,1749065449494,-500.0,0.00022973,2]
[364309929,1749065449504,-500.0,0.00022973,2]
[364309931,1749065449514,-500.0,0.00022973,2]
[364309932,1749065449524,-500.0,0.00022973,2]
[364309934,1749065449534,-500.0,0.00022973,2]
[364309936,1749065449543,-500.0,0.00022973,2]
[364309938,1749065449554,-600.0,0.00022973,2]
[364309940,1749065449564,-500.0,0.00022973,2]
[364309942,1749065449573,-500.0,0.00022973,2]
[364309944,1749065449583,-500.0,0.00022973,2]
[364309946,1749065449592,-77346.01731175,0.00023,2]
[364309948,1749065449602,-248.29768602,0.00023,2]
[364309950,1749065449611,-111708.36732646,0.00023,2]
[364309989,1749065450106,-440.0,0.0001954,2]
[364309991,1749065450115,-151.0,0.00021969,7]
[364309993,1749065450124,-151.0,0.00022,7]
[364309995,1749065450134,-450.0,0.00022569,2]
[364309997,1749065450143,-3404.17529256,0.00023,2]
[364315086,1749066074765,170.786251,0.00013699,2]
[364315088,1749066144209,164.31465426,0.00024161,120]
[364315168,1749066632436,-183.00587509,0.0001893,2]
[364315211,1749066632948,-177.396957,0.00019178,2]
[364315213,1749066632958,-300.0,0.00019513,2]
[364315215,1749066632967,-929.99,0.00019514,2]
[364315217,1749066632977,-1798.82,0.00019514,2]
[364315219,1749066632986,-758.29,0.00019514,2]
[364315221,1749066632996,-465.9860981,0.00019514,2]
[364315223,1749066633006,-440.0,0.00019515,2]
[364315225,1749066633015,-440.0,0.00019515,2]
[364315226,1749066633025,-436.48,0.00019515,2]
[364315227,1749066633034,-440.0,0.00019515,2]
[364315228,1749066633044,-294.15458438,0.00019515,2]
[364315229,1749066633053,-440.0,0.00019515,2]
[364315230,1749066633062,-440.0,0.00019515,2]
[364315231,1749066633072,-440.0,0.00019515,2]
[364315232,1749066633081,-440.0,0.00019515,2]
[364315233,1749066633091,-440.0,0.00019515,2]
[364315234,1749066633101,-440.0,0.00019515,2]
[364315235,1749066633111,-389.21547529,0.00019515,2]
[364315236,1749066633120,-527.85,0.00019515,2]
[364315237,1749066633130,-233.2,0.00019515,2]
[364315238,1749066633139,-420.0,0.00019515,2]
[364315239,1749066633149,-440.0,0.00019515,2]
[364315240,1749066633159,-154.79258161,0.00019515,2]
[364315241,1749066633169,-440.0,0.00019515,2]
[364315242,1749066633178,-440.0,0.00019515,2]
[364315243,1749066633191,-420.0,0.00019515,2]
[364315244,1749066633201,-440.0,0.00019515,2]
[364315245,1749066633211,-440.0,0.00019515,2]
[364315246,1749066633221,-440.0,0.00019515,2]
[364315247,1749066633231,-390.0,0.00019515,2]
[364315248,1749066633241,-390.0,0.00019515,2]
[364315249,1749066633250,-440.0,0.00019515,2]
[364315250,1749066633259,-306.75854565,0.00019515,2]
[364315251,1749066633270,-430.0,0.0001954,2]
[364315252,1749066633279,-440.0,0.0001954,2]
[364315253,1749066633288,-440.0,0.0001954,2]
[364315254,1749066633300,-163.83769255,0.00019686,2]
[364315255,1749066633309,-348.3989569,0.00019785,2]
[364315256,1749066633322,-61.6010431,0.00019785,2]
[364315257,1749066633331,-372.2581473,0.00019785,2]
[364315258,1749066633344,-67.7418527,0.00019785,2]
[364315259,1749066633354,-410.0,0.00019785,2]
[364315260,1749066633364,-440.0,0.00019785,2]
[364315261,1749066633374,-979.24,0.00019785,2]
[364315262,1749066633383,-440.0,0.00019785,2]
[364315263,1749066633393,-440.0,0.00019785,2]
[364315264,1749066633402,-370.0,0.00019785,2]
[364315265,1749066633412,-954.73,0.00019785,2]
[364315266,1749066633421,-440.0,0.00019785,2]
[364315267,1749066633431,-440.0,0.00019785,2]
[364315268,1749066633440,-1281.41,0.00019785,2]
[364315269,1749066633450,-420.0,0.00019786,2]
[364315270,1749066633459,-1211.08,0.00019786,2]
[364315271,1749066633471,-440.0,0.00019786,2]
[364315272,1749066633481,-524.73,0.00019786,2]
[364315273,1749066633491,-440.0,0.00019786,2]
[364315274,1749066633502,-1979.75,0.00019786,2]
[364315275,1749066633512,-420.0,0.00019786,2]
[364315276,1749066633521,-440.0,0.00019786,2]
[364315277,1749066633531,-440.0,0.00019786,2]
[364315278,1749066633540,-440.0,0.00019786,2]
[364315279,1749066633550,-440.0,0.00019786,2]
[364315280,1749066633559,-291.13,0.00019786,2]
[364315281,1749066633569,-191.8996673,0.00019786,2]
[364315282,1749066633579,-440.0,0.00019786,2]
[364315283,1749066633589,-430.0,0.00019786,2]
[364315284,1749066633599,-440.0,0.00019786,2]
[364315285,1749066633609,-440.0,0.00019786,2]
[364315286,1749066633619,-440.0,0.00019786,2]
[364315287,1749066633628,-509.42,0.00019786,2]
[364315288,1749066633639,-440.0,0.00019786,2]
[364315289,1749066633651,-430.0,0.00019786,2]
[364315290,1749066633660,-440.0,0.00019786,2]
[364315291,1749066633670,-420.0,0.00019786,2]
[364315292,1749066633680,-440.0,0.00019786,2]
[364315293,1749066633690,-117.27453504,0.00019786,2]
[364315294,1749066633703,-322.72546496,0.00019786,2]
[364315295,1749066633712,-440.0,0.00019786,2]
[364315296,1749066633723,-420.0,0.00019787,2]
[364315297,1749066633733,-440.0,0.00019787,2]
[364315298,1749066633743,-645.87,0.00019787,2]
[364315299,1749066633753,-440.0,0.00019787,2]
[364315300,1749066633763,-410.0,0.00019787,2]
[364315301,1749066633772,-440.0,0.00019787,2]
[364315302,1749066633782,-440.0,0.00019787,2]
[364315303,1749066633791,-410.0,0.00019787,2]
[364315304,1749066633803,-440.0,0.00019787,2]
[364315305,1749066633813,-440.0,0.00019787,2]
[364315306,1749066633823,-440.0,0.00019787,2]
[364315307,1749066633832,-440.0,0.00019787,2]
[364315308,1749066633842,-440.0,0.00019787,2]
[364315309,1749066633852,-440.0,0.00019787,2]
[364315310,1749066633861,-500.0,0.00019787,2]
[364315311,1749066633871,-470.84,0.00019788,2]
[364315312,1749066633881,-929.99,0.00019788,2]
[364315313,1749066633890,-440.0,0.00019788,2]
[364315314,1749066633900,-1798.82,0.00019788,2]
[364315315,1749066633909,-500.0,0.00019788,2]
[364315316,1749066633919,-758.29,0.00019788,2]
[364315317,1749066633930,-440.0,0.00019788,2]
[364315318,1749066633940,-440.0,0.00019788,2]
[364315319,1749066633950,-420.0,0.00019788,2]
[364315320,1749066633960,-420.0,0.00019788,2]
[364315321,1749066633969,-420.0,0.00019788,2]
[364315322,1749066633981,-420.0,0.00019788,2]
[364315323,1749066633991,-440.0,0.00019788,2]
[364315324,1749066634002,-440.0,0.00019788,2]
[364315325,1749066634012,-410.0,0.00019788,2]
[364315326,1749066634022,-440.0,0.00019788,2]
[364315327,1749066634032,-440.0,0.00019788,2]
[364315328,1749066634042,-440.0,0.00019788,2]
[364315329,1749066634052,-440.0,0.00019788,2]
[364315330,1749066634062,-420.0,0.00019788,2]
[364315331,1749066634072,-420.0,0.00019788,2]
[364315332,1749066634082,-410.0,0.00019788,2]
[364315333,1749066634092,-440.0,0.00019788,2]
[364315334,1749066634101,-440.0,0.00019788,2]
[364315335,1749066634111,-410.0,0.00019788,2]
[364315336,1749066634121,-440.0,0.00019788,2]
[364315337,1749066634131,-400.82147598,0.00019788,2]
[364315338,1749066634141,-440.0,0.00019788,2]
[364315339,1749066634152,-506.1688868,0.00019788,2]
[364315340,1749066634162,-440.0,0.00019789,2]
[364315341,1749066634172,-440.0,0.00019789,2]
[364315342,1749066634182,-440.0,0.00019789,2]
[364315343,1749066634192,-440.0,0.00019789,2]
[364315344,1749066634201,-440.0,0.00019789,2]
[364315345,1749066634211,-440.0,0.00019789,2]
[364315346,1749066634362,-440.0,0.00019789,2]
[364315347,1749066634372,-440.0,0.00019789,2]
[364315348,1749066634382,-440.0,0.00019789,2]
[364315349,1749066634393,-440.0,0.00019789,2]
[364315350,1749066634403,-440.0,0.00019789,2]
[364315351,1749066634412,-530.65227927,0.00019789,2]
[364315352,1749066634421,-440.0,0.00019789,2]
[364315353,1749066634431,-440.0,0.00019789,2]
[364315354,1749066634440,-440.0,0.00019789,2]
[364315355,1749066634450,-440.0,0.00019789,2]
[364315356,1749066634460,-162.541,0.00019813,2]
[364315357,1749066634470,-160.0,0.00019813,2]
[364315358,1749066634481,-498.26,0.00019813,2]
[364315359,1749066634490,-440.0,0.00019813,2]
[364315360,1749066634500,-440.0,0.00019813,2]
[364315361,1749066634509,-1494.56,0.00019813,2]
[364315362,1749066634519,-1174.36,0.00019813,2]
[364315363,1749066634529,-440.0,0.00019813,2]
[364315364,1749066634540,-440.0,0.00019813,2]
[364315365,1749066634550,-440.0,0.00019813,2]
[364315366,1749066634559,-676.34,0.00019813,2]
[364315367,1749066634569,-440.0,0.00019813,2]
[364315368,1749066634579,-1098.45,0.00019813,2]
[364315369,1749066634589,-440.0,0.00019813,2]
[364315370,1749066634599,-370.0,0.00019814,2]
[364315371,1749066634609,-440.0,0.00019814,2]
[364315372,1749066634619,-788.84107836,0.00020013,2]
[364315373,1749066634629,-263.09013383,0.00020059,2]
[364315374,1749066634639,-440.0,0.00020059,2]
[364315375,1749066634648,-979.24,0.00020059,2]
[364315376,1749066634658,-440.0,0.00020059,2]
[364315377,1749066634668,-408.54429707,0.00020059,2]
[364315378,1749066634678,-954.73,0.00020059,2]
[364315379,1749066634688,-440.0,0.00020059,2]
[364315380,1749066634697,-440.0,0.00020059,2]
[364315381,1749066634707,-1281.41,0.00020059,2]
[364315382,1749066634716,-1211.08,0.0002006,2]
[364315383,1749066634726,-440.0,0.0002006,2]
[364315384,1749066634736,-524.73,0.0002006,2]
[364315385,1749066634746,-380.0,0.0002006,2]
[364315386,1749066634757,-1979.75,0.0002006,2]
[364315387,1749066634766,-440.0,0.0002006,2]
[364315388,1749066634776,-440.0,0.0002006,2]
[364315389,1749066634786,-400.0,0.0002006,2]
[364315390,1749066634796,-440.0,0.0002006,2]
[364315391,1749066634805,-400.0,0.0002006,2]
[364315392,1749066634815,-400.0,0.0002006,2]
[364315393,1749066634825,-440.0,0.0002006,2]
[364315394,1749066634835,-410.0,0.0002006,2]
[364315395,1749066634844,-509.42,0.0002006,2]
[364315396,1749066634854,-440.0,0.0002006,2]
[364315397,1749066634864,-440.0,0.0002006,2]
[364315398,1749066634874,-440.0,0.0002006,2]
[364315399,1749066634884,-440.0,0.0002006,2]
[364315400,1749066634894,-440.0,0.0002006,2]
[364315401,1749066634904,-410.0,0.00020061,2]
[364315402,1749066634914,-645.87,0.00020061,2]
[364315403,1749066634924,-440.0,0.00020061,2]
[364315404,1749066634935,-440.0,0.00020061,2]
[364315405,1749066634945,-440.0,0.00020061,2]
[364315406,1749066634954,-440.0,0.00020061,2]
[364315407,1749066634964,-575.85396852,0.00020061,2]
[364315408,1749066634975,-440.0,0.00020061,2]
[364315409,1749066634985,-440.0,0.00020061,2]
[364315410,1749066634996,-440.0,0.00020061,2]
[364315411,1749066635006,-440.0,0.00020061,2]
[364315412,1749066635015,-929.99,0.00020062,2]
[364315413,1749066635026,-410.0,0.00020062,2]
[364315414,1749066635037,-1798.82,0.00020062,2]
[364315415,1749066635049,-758.29,0.00020062,2]
[364315416,1749066635059,-440.0,0.00020062,2]
[364315417,1749066635070,-410.0,0.00020062,2]
[364315418,1749066635080,-390.0,0.00020062,2]
[364315419,1749066635090,-440.0,0.00020062,2]
[364315420,1749066635100,-440.0,0.00020062,2]
[364315421,1749066635109,-440.0,0.00020062,2]
[364315422,1749066635119,-440.0,0.00020062,2]
[364315423,1749066635129,-440.0,0.00020062,2]
[364315424,1749066635138,-475.52381841,0.00020062,2]
[364315425,1749066635148,-410.0,0.00020062,2]
[364315426,1749066635159,-250.0,0.00020062,2]
[364315427,1749066635170,-441.3213603,0.00020062,2]
[364315428,1749066635179,-360.0,0.00020063,2]
[364315429,1749066635189,-440.0,0.00020063,2]
[364315430,1749066635199,-440.0,0.00020063,2]
[364315431,1749066635210,-440.0,0.00020063,2]
[364315432,1749066635219,-486.93,0.00020063,2]
[364315433,1749066635229,-440.0,0.00020063,2]
[364315434,1749066635239,-440.0,0.00020063,2]
[364315435,1749066635249,-416.91681944,0.00020063,2]
[364315436,1749066635259,-440.0,0.00020063,2]
[364315437,1749066635268,-440.0,0.00020063,2]
[364315438,1749066635278,-500.0,0.00020063,2]
[364315439,1749066635287,-440.0,0.00020063,2]
[364315440,1749066635299,-380.0,0.00020063,2]
[364315441,1749066635310,-400.7707812,0.00020063,2]
[364315442,1749066635320,-440.0,0.00020063,2]
[364315443,1749066635330,-440.0,0.00020063,2]
[364315444,1749066635340,-1600.0,0.00020068,2]
[364315445,1749066635350,-498.26,0.00020087,2]
[364315446,1749066635359,-400.0,0.00020087,2]
[364315447,1749066635369,-440.0,0.00020087,2]
[364315448,1749066635379,-1494.56,0.00020087,2]
[364315449,1749066635390,-1174.36,0.00020087,2]
[364315450,1749066635399,-440.0,0.00020087,2]
[364315451,1749066635409,-440.0,0.00020087,2]
[364315452,1749066635418,-400.0,0.00020087,2]
[364315453,1749066635428,-676.34,0.00020087,2]
[364315454,1749066635438,-440.0,0.00020087,2]
[364315455,1749066635447,-1098.45,0.00020087,2]
[364315456,1749066635457,-440.0,0.00020087,2]